bitfinex-derivatives/quotes_SOLF0:USTF0_20250720
["timestamp","ask_amount","ask_price","bid_price","bid_amount"]
[1753005702175,3.14,179.99,179.97,8.5734]
[1753005702380,3.14,179.99,179.98,3.02]
[1753005703078,3.14,179.99,179.97,5.5534]
[1753005703371,3.14,179.99,179.97,8.5734]
[1753005709380,3.14,179.99,179.97,5.5534]
[1753005710076,3.14,179.99,179.97,8.5734]
[1753005711380,3.14,179.99,179.98,5.5532]
[1753005711582,3.14,179.99,179.98,8.5732]
[1753005711881,3.14,179.99,179.97,8.5734]
[1753005712078,3.14,179.99,179.97,3.02]
[1753005712479,3.14,179.99,179.98,5.5532]
[1753005712981,3.14,179.99,179.95,3.02]
[1753005713382,3.14,179.97,179.95,3.02]
[1753005713983,3.14,179.97,179.96,5.5538]
[1753005714183,3.14,179.97,179.96,8.5738]
[1753005715584,3.14,179.97,179.88,11.1122]
[1753005715788,3.14,179.97,179.89,3.02]
[1753005716283,3.14,179.96,179.94,8.5743]
[1753005716485,3.14,179.96,179.93,3.02]
[1753005716680,8.694,179.96,179.93,8.5746]
[1753005716880,3.14,179.95,179.93,3.02]
[1753005717075,5.554,179.96,179.86,102.28]
[1753005717281,3.14,179.94,179.86,102.28]
[1753005717688,3.14,179.94,179.93,5.5548]
[1753005717884,3.14,179.94,179.93,8.5748]
[1753005722691,3.12,179.99,179.93,3.02]
[1753005723185,3.12,179.99,179.97,5.5533]
[1753005723386,3.12,179.98,179.89,11.112]
[1753005723587,5.5526,180.0,179.89,11.112]
[1753005723892,3.12,179.99,179.9,3.07]
[1753005725094,3.12,179.99,179.98,8.6232]
[1753005725788,6.19435571,180.06,180.01,3.07]
[1753005725998,16.66,180.1,179.89,4.64792424]
[1753005725999,102.28,180.07,179.94,3.07]
[1753005726397,3.12,180.06,179.94,3.07]
[1753005726597,5.5512,180.05,179.94,3.07]
[1753005726798,3.12,180.04,179.94,3.07]
[1753005727188,102.28,180.07,179.94,3.07]
[1753005727189,3.12,180.03,179.94,3.07]
[1753005728299,5.5528,180.0,179.97,5.5533]
[1753005728500,3.12,179.99,179.97,8.6233]
[1753005728998,5.5529,179.99,179.96,5.5537]
[1753005729202,3.12,179.98,179.93,132.04701135]
[1753005729501,3.12,179.98,179.94,3.07]
[1753005729801,3.12,179.97,179.94,3.07]
[1753005731103,3.12,179.97,179.93,132.04701135]
[1753005731395,3.12,179.97,179.95,3.07]
[1753005731600,3.12,179.96,179.95,3.07]
[1753005733197,3.12,179.96,179.93,140.67161135]
[1753005733503,3.12,179.96,179.94,3.07]
[1753005733905,5.5535,179.97,179.94,3.07]
[1753005734106,3.12,179.97,179.94,3.07]
[1753005734602,3.12,179.97,179.95,5.5539]
[1753005734806,3.12,179.98,179.96,3.07]
[1753005735202,105.38,179.99,179.97,5.5532]
[1753005735401,102.26,179.99,179.9,4.64792424]
[1753005735604,3.12,180.01,179.91,3.07]
[1753005736005,3.12,180.03,179.92,4.64792424]
[1753005736202,3.12,180.03,179.94,3.07]
[1753005736908,3.12,180.03,180.02,3.07]
[1753005737504,3.12,180.03,179.99,3.07]
[1753005737708,3.12,180.03,179.94,3.07]
[1753005738600,5.5517,180.03,179.99,5.5527]
[1753005738804,3.12,180.02,179.99,8.6227]
[1753005739608,3.12,180.02,180.0,8.6226]
[1753005740411,3.12,180.01,180.0,8.6226]
[1753005741518,3.12,180.01,180.0,3.07]
[1753005742421,3.12,180.01,179.98,8.6231]
[1753005742815,3.12,180.01,179.99,3.07]
[1753005743011,3.12,180.0,179.99,8.6229]
[1753005744015,3.12,180.0,179.97,3.07]
[1753005744214,3.12,180.0,179.92,3.07]
[1753005744618,3.12,179.99,179.98,5.5532]
[1753005745220,3.12,180.01,179.98,8.6232]
[1753005745421,3.12,180.0,179.99,3.07]
[1753005746120,3.12,180.02,179.99,3.07]
[1753005746312,5.5518,180.03,179.99,3.07]
[1753005746517,3.12,180.02,180.0,3.07]
[1753005747622,3.12,180.02,180.0,8.6226]
[1753005748022,3.12,180.02,180.0,3.07]
[1753005748924,5.552,180.02,180.0,3.07]
[1753005749119,3.03,180.01,180.0,3.07]
[1753005750525,3.03,180.01,180.0,8.6226]
[1753005750920,3.03,180.01,179.98,3.08]
[1753005751826,8.5825,180.01,179.98,8.633]
[1753005752034,3.03,180.0,179.98,3.08]
[1753005752823,3.03,180.0,179.93,3.08]
[1753005753323,3.03,179.99,179.97,5.5535]
[1753005753524,3.03,180.01,179.9,3.08]
[1753005754532,3.03,180.01,179.99,5.5528]
[1753005754834,3.03,180.0,179.99,5.5528]
[1753005755132,3.03,180.0,179.98,5.5531]
[1753005755429,3.03,179.99,179.98,5.5531]
[1753005755831,3.03,179.99,179.98,8.6331]
[1753005759537,3.03,179.99,179.98,3.08]
[1753005760632,3.03,179.99,179.98,8.6332]
[1753005761238,3.03,179.99,179.98,3.08]
[1753005762237,3.03,179.99,179.98,8.6332]
[1753005762433,3.03,180.02,179.91,11.1107]
[1753005762735,3.03,180.02,179.92,3.08]
[1753005763033,3.03,180.02,180.0,5.5526]
[1753005763237,3.03,180.02,180.01,3.08]
[1753005763939,8.582,180.02,179.99,5.5528]
[1753005764140,3.03,180.01,180.0,3.08]
[1753005765045,3.03,180.01,180.0,8.6326]
[1753005765237,8.5818,180.03,180.0,8.6326]
[1753005765540,3.03,180.02,180.01,3.08]
[1753005765740,3.03,180.02,180.01,8.6323]
[1753005765942,3.03,180.02,179.92,4.64792424]
[1753005765943,3.03,180.04,179.95,3.08]
[1753005766444,105.27,180.05,180.04,3.08]
[1753005766940,105.27,180.05,180.04,8.6314]
[1753005767132,102.24,180.05,180.04,8.6314]
[1753005767738,3.03,180.06,180.05,3.08]
[1753005769044,3.03,180.06,179.96,3.08]
[1753005769643,5.5517,180.03,179.96,3.08]
[1753005769845,3.03,180.02,179.96,3.08]
[1753005770346,3.03,180.05,179.96,3.08]
[1753005770942,3.03,180.05,180.04,3.08]
[1753005771246,373.44,180.1,180.04,3.08]
[1753005771247,3.03,180.08,180.04,3.08]
[1753005771440,5.5506,180.07,180.04,5.5512]
[1753005771646,3.03,180.06,180.05,3.08]
[1753005771845,3.03,180.06,179.97,3.08]
[1753005772052,3.03,180.04,180.02,8.6318]
[1753005772348,3.03,180.04,180.02,3.08]
[1753005773243,5.5512,180.05,180.02,3.08]
[1753005773440,3.03,180.03,180.01,3.08]
[1753005774853,3.03,180.02,179.99,3.08]
[1753005775247,3.03,180.02,180.0,3.08]
[1753005776046,8.5823,180.01,180.0,3.08]
[1753005776946,8.5823,180.01,179.98,5.5531]
[1753005776947,3.03,179.98,179.92,4.64792424]
[1753005777154,3.03,179.98,179.97,3.08]
[1753005777551,3.03,179.98,179.97,8.6335]
[1753005777745,108.41435571,180.05,179.97,5.5535]
[1753005777947,5.5523,180.02,179.98,8.633]
[1753005778148,3.02,180.01,179.99,3.2]
[1753005778357,3.02,180.04,179.91,4.64792424]
[1753005778553,3.02,180.02,179.99,5.5527]
[1753005778748,3.02,180.02,180.0,3.2]
[1753005778944,3.02,180.02,180.01,3.2]
[1753005779949,3.02,180.03,180.01,3.2]
[1753005780147,3.02,180.03,179.88,122.67381582]
[1753005780148,3.02,180.03,180.02,3.2]
[1753005781549,3.02,180.03,179.94,3.2]
[1753005782258,6.19435571,180.02,179.94,3.2]
[1753005782553,3.02,179.98,179.96,3.2]
[1753005783052,3.02,179.97,179.96,3.2]
[1753005783756,102.52,179.99,179.88,4.64792424]
[1753005783955,102.52,179.99,179.89,3.2]
[1753005783956,3.02,179.98,179.89,3.2]
[1753005784452,3.02,179.95,179.92,5.555]
[1753005784657,3.02,179.94,179.93,3.2]
[1753005785053,3.02,179.97,179.93,3.2]
[1753005785951,3.02,179.96,179.95,3.2]
[1753005786347,3.02,179.96,179.93,3.2]
[1753005786653,3.02,179.96,179.94,3.2]
[1753005786955,102.48,179.98,179.92,3.2]
[1753005787153,3.02,179.97,179.92,3.2]
[1753005788954,3.02,179.97,179.86,3.2]
[1753005789860,5.5542,179.95,179.91,5.5553]
[1753005790060,3.02,179.94,179.92,3.2]
[1753005790259,3.02,179.97,179.92,3.2]
[1753005790759,3.02,179.93,179.92,3.2]
[1753005791353,8.5743,179.95,179.92,3.2]
[1753005791556,3.02,179.94,179.92,3.2]
[1753005791858,3.02,179.93,179.92,3.2]
[1753005792263,3.02,179.92,179.91,8.7553]
[1753005792561,3.02,179.92,179.91,3.2]
[1753005793064,3.02,179.92,179.88,3.2]
[1753005793361,3.02,179.97,179.88,3.2]
[1753005793561,5.5551,179.92,179.88,8.7561]
[1753005793862,3.02,179.9,179.88,5.5561]
[1753005794261,3.02,179.9,179.87,5.5565]
[1753005794458,3.02,179.89,179.88,3.2]
[1753005796458,8.5755,179.91,179.88,3.2]
[1753005796662,3.02,179.9,179.88,3.2]
[1753005796863,3.02,179.9,179.89,3.2]
[1753005797165,3.02,179.92,179.89,3.2]
[1753005797557,3.02,179.94,179.88,5.5562]
[1753005797860,3.02,179.92,179.9,3.2]
[1753005798869,102.76,179.95,179.82,137.00357533]
[1753005799067,3.02,179.94,179.83,3.2]
[1753005799366,3.02,179.9,179.83,3.2]
[1753005799565,8.5756,179.91,179.83,3.2]
[1753005799766,3.02,179.91,179.87,5.5564]
[1753005799975,3.02,179.91,179.88,3.2]
[1753005800969,3.02,179.91,179.88,5.5561]
[1753005801162,3.02,179.91,179.9,3.2]
[1753005802960,3.02,179.91,179.83,3.2]
[1753005803358,5.5556,179.91,179.86,5.5566]
[1753005803563,3.02,179.89,179.87,3.2]
[1753005805267,3.02,179.87,179.83,3.2]
[1753005805461,3.02,179.86,179.83,3.2]
[1753005805861,3.02,179.87,179.84,5.5574]
[1753005806066,3.02,179.87,179.86,3.2]
[1753005807158,8.5765,179.88,179.86,3.2]
[1753005807563,8.5765,179.88,179.78,11.1184]
[1753005807768,3.02,179.87,179.85,3.2]
[1753005807969,5.5565,179.88,179.85,3.2]
[1753005808167,3.18,179.87,179.83,3.21]
[1753005808671,8.7374,179.85,179.83,3.21]
[1753005808871,8.7374,179.85,179.84,3.21]
[1753005809871,3.18,179.88,179.84,3.21]
[1753005810267,102.76,179.95,179.84,3.21]
[1753005810463,3.18,179.87,179.84,3.21]
[1753005811366,3.18,179.87,179.83,3.21]
[1753005811565,5.5571,179.86,179.83,3.21]
[1753005811768,3.18,179.85,179.83,3.21]
[1753005812168,3.18,179.84,179.83,3.21]
[1753005814477,3.18,179.87,179.83,3.21]
[1753005814673,3.18,179.89,179.83,3.21]
[1753005815066,5.5562,179.89,179.85,5.557]
[1753005815272,3.18,179.88,179.86,3.21]
[1753005815575,3.18,179.88,179.87,3.21]
[1753005815876,3.18,179.94,179.88,3.21]
[1753005816475,3.18,179.89,179.88,3.21]
[1753005816866,3.18,179.89,179.86,5.5568]
[1753005817072,8.7362,179.89,179.87,3.21]
[1753005817272,3.18,179.88,179.79,3.21]
[1753005817776,3.18,179.86,179.84,3.21]
[1753005817971,3.18,179.85,179.84,3.21]
[1753005818170,5.5564,179.88,179.84,5.5575]
[1753005818372,3.18,179.87,179.85,3.21]
[1753005818876,16.68,179.96,179.86,3.21]
[1753005819075,3.18,179.87,179.86,3.21]
[1753005819679,3.18,179.87,179.84,3.21]
[1753005819875,3.18,179.85,179.76,261.11013793]
[1753005820270,3.18,179.85,179.83,5.5577]
[1753005820476,5.5567,179.87,179.77,3.21]
[1753005821176,8.7367,179.87,179.85,3.21]
[1753005821380,8.7367,179.87,179.86,3.21]
[1753005822372,102.38,179.92,179.84,5.5573]
[1753005822373,3.18,179.85,179.84,3.21]
[1753005822574,5.5571,179.86,179.84,3.21]
[1753005822772,8.7371,179.86,179.76,261.11013793]
[1753005823079,8.7373,179.85,179.77,3.21]
[1753005823274,3.18,179.84,179.77,3.21]
[1753005823479,3.18,179.84,179.76,158.69013793]
[1753005823480,5.558,179.83,179.8,5.5585]
[1753005823685,8.738,179.83,179.82,3.21]
[1753005824076,3.18,179.82,179.81,3.21]
[1753005825172,8.7377,179.84,179.81,5.5585]
[1753005825377,8.7377,179.84,179.83,3.21]
[1753005825577,102.38,179.92,179.83,3.21]
[1753005825883,3.18,179.86,179.83,3.21]
[1753005826182,3.18,179.86,179.83,8.7676]
[1753005826480,3.18,179.86,179.84,3.21]
[1753005826683,3.18,179.9,179.84,3.21]
[1753005827384,5.5568,179.87,179.84,3.21]
[1753005827583,3.18,179.9,179.84,3.21]
[1753005828885,5.557,179.86,179.84,3.21]
[1753005829084,3.18,179.85,179.84,3.21]
[1753005830487,3.18,179.85,179.84,8.7675]
[1753005830684,5.5567,179.87,179.84,8.7675]
[1753005830877,3.18,179.9,179.85,3.21]
[1753005831287,3.18,179.87,179.86,3.21]
[1753005831484,102.34,179.91,179.76,169.80973793]
[1753005831689,3.18,179.9,179.77,3.21]
[1753005832090,3.18,179.87,179.85,3.21]
[1753005832586,3.18,179.84,179.83,3.21]
[1753005833885,5.5576,179.84,179.8,5.5587]
[1753005834085,3.18,179.82,179.8,5.5587]
[1753005834487,3.18,179.82,179.81,3.21]
[1753005834989,5.5576,179.84,179.82,3.21]
[1753005834990,3.18,179.84,179.82,3.21]
[1753005835490,8.7376,179.84,179.83,3.21]
[1753005836290,3.18,179.84,179.83,3.21]
[1753005838193,8.7375,179.84,179.81,8.5785]
[1753005838397,3.19,179.83,179.82,3.02]
[1753005838996,3.19,179.82,179.81,3.02]
[1753005845300,3.19,179.85,179.77,3.02]
[1753005845898,3.19,179.83,179.81,3.02]
[1753005846598,3.19,179.85,179.8,3.02]
[1753005847403,5.5581,179.83,179.8,3.02]
[1753005847596,3.19,179.81,179.8,3.02]
[1753005850105,3.19,179.81,179.8,8.5788]
[1753005850600,8.7481,179.83,179.8,8.5788]
[1753005850800,3.19,179.82,179.81,3.02]
[1753005851004,3.19,179.83,179.81,5.5584]
[1753005851201,3.19,179.83,179.82,3.02]
[1753005852001,8.7473,179.85,179.82,3.02]
[1753005852207,102.36,179.86,179.83,3.02]
[1753005852608,105.55,179.86,179.83,5.5577]
[1753005852806,105.55,179.86,179.84,3.02]
[1753005853608,102.36,179.86,179.77,3.02]
[1753005853907,102.36,179.86,179.85,5.5572]
[1753005854105,102.36,179.86,179.85,8.5772]
[1753005854708,102.36,179.86,179.85,3.02]
[1753005855107,105.55,179.86,179.85,3.02]
[1753005855504,105.55,179.86,179.85,8.5772]
[1753005855807,105.55,179.86,179.85,3.02]
[1753005856710,102.36,179.86,179.85,3.02]
[1753005857307,8.7463,179.88,179.85,3.02]
[1753005857612,3.19,179.87,179.85,3.02]
[1753005857808,3.19,179.87,179.86,3.02]
[1753005863012,9.38435571,180.0,179.87,3.02]
[1753005863208,6.19435571,180.07,179.91,3.02]
[1753005863406,379.93435571,180.14,179.94,7.66792424]
[1753005863604,3.19,180.12,179.96,7.66792424]
[1753005863807,105.51,180.14,179.98,7.66792424]
[1753005864011,379.93435571,180.24,180.01,4.64792424]
[1753005864210,3.19,180.19,180.04,7.66792424]
[1753005864414,5.5473,180.18,180.12,5.5486]
[1753005864613,102.32,180.23,180.12,5.5486]
[1753005864805,3.19,180.22,180.12,3.02]
[1753005865705,3.19,180.15,180.13,3.02]
[1753005866317,3.19,180.15,180.14,3.02]
[1753005867716,3.19,180.17,180.12,3.02]
[1753005868316,3.19,180.17,180.13,3.15]
[1753005868612,2.98,180.15,180.13,3.15]
[1753005869116,2.98,180.15,180.14,3.15]
[1753005869910,5.548,180.15,180.01,102.32]
[1753005870220,2.98,180.14,180.01,102.32]
[1753005870517,2.98,180.14,180.09,5.5497]
[1753005870813,5.5483,180.14,180.08,5.5501]
[1753005871013,2.98,180.12,180.08,5.5501]
[1753005871817,2.98,180.12,180.09,3.15]
[1753005872017,2.98,180.12,180.09,8.6997]
[1753005872317,2.98,180.13,180.1,3.15]
[1753005872819,2.98,180.13,180.09,5.5497]
[1753005873514,2.98,180.13,180.12,3.15]
[1753005874518,8.5286,180.13,180.12,3.15]
[1753005875021,8.5286,180.13,180.1,3.15]
[1753005875322,2.98,180.12,180.09,3.15]
[1753005875918,2.98,180.11,180.1,3.15]
[1753005876320,102.32,180.18,180.08,3.15]
[1753005876520,2.98,180.09,180.08,3.15]
[1753005877121,5.5492,180.12,180.07,5.5504]
[1753005877321,2.98,180.1,180.09,3.15]
[1753005880926,2.98,180.1,180.08,3.15]
[1753005881228,2.98,180.1,180.07,3.15]
[1753005882233,102.32,180.18,180.05,8.7009]
[1753005882234,5.5501,180.09,180.05,8.7009]
[1753005882527,2.98,180.07,180.06,3.15]
[1753005883729,2.98,180.07,180.04,3.15]
[1753005883927,119.0,180.18,180.05,3.15]
[1753005884225,2.98,180.06,180.05,3.15]
[1753005887127,2.98,180.07,180.06,3.15]
[1753005889128,2.98,180.07,180.03,3.15]
[1753005889327,2.98,180.07,180.04,3.15]
[1753005889731,2.98,180.05,180.04,3.15]
[1753005890627,2.98,180.04,180.03,3.15]
[1753005891129,2.98,180.15,180.03,3.15]
[1753005892025,2.98,180.06,180.03,3.15]
[1753005892228,27.7758,180.16,180.03,3.15]
[1753005892229,2.98,180.15,180.03,3.15]
[1753005892423,2.98,180.07,180.03,8.7015]
[1753005892627,8.5302,180.08,180.04,3.15]
[1753005893025,2.98,180.07,180.04,3.15]
[1753005893924,2.98,180.06,180.04,3.15]
[1753005895932,2.98,180.06,180.05,3.15]
[1753005897535,2.98,180.06,180.03,3.15]
[1753005897735,2.98,180.05,180.04,3.15]
[1753005898834,5.5511,180.05,180.03,3.1]
[1753005899036,3.05,180.04,180.03,3.1]
[1753005900433,8.6015,180.04,180.02,169.87114103]
[1753005900636,3.05,180.03,180.02,169.87114103]
[1753005900938,3.05,180.03,180.0,3.1]
[1753005901139,3.05,180.03,179.97,102.16]
[1753005901337,3.05,180.03,179.98,3.1]
[1753005901539,3.05,180.03,179.99,3.1]
[1753005901837,5.5521,180.02,179.99,3.1]
[1753005902033,3.05,180.01,179.99,3.1]
[1753005902241,5.5521,180.02,179.94,102.16]
[1753005902433,3.05,180.0,179.95,5.554]
[1753005902835,3.05,180.0,179.96,3.1]
[1753005903238,3.05,179.99,179.96,3.1]
[1753005903537,3.05,180.09,179.96,3.1]
[1753005903738,3.05,180.08,179.96,3.1]
[1753005904637,16.68,180.09,179.96,3.1]
[1753005904940,3.05,180.04,179.96,3.1]
[1753005905341,3.05,180.04,179.94,3.1]
[1753005905832,8.6042,179.95,179.94,3.1]
[1753005906040,3.05,180.03,179.9,3.1]
[1753005906228,3.05,179.93,179.9,3.1]
[1753005906434,11.103,180.04,179.9,3.1]
[1753005906435,3.05,179.92,179.9,3.1]
[1753005906634,3.05,180.03,179.9,3.1]
[1753005907338,3.05,179.96,179.9,3.1]
[1753005908341,5.5544,179.95,179.9,3.1]
[1753005908543,3.05,179.94,179.9,3.1]
[1753005908941,3.05,179.93,179.9,3.1]
[1753005909140,3.05,179.92,179.9,3.1]
[1753005909340,3.05,179.93,179.9,3.1]
[1753005910341,3.05,179.92,179.9,3.1]
[1753005910538,3.05,179.92,179.85,475.46]
[1753005910539,3.05,179.92,179.91,3.1]
[1753005913042,3.05,179.92,179.87,3.1]
[1753005913244,8.6053,179.92,179.87,3.1]
[1753005913544,3.05,179.91,179.87,3.1]
[1753005913938,3.05,179.91,179.73,12.08928634]
[1753005913939,3.05,179.91,179.81,3.1]
[1753005914640,3.05,179.89,179.84,3.1]
[1753005914840,3.05,179.88,179.84,3.1]
[1753005915250,3.05,179.88,179.85,3.1]
[1753005915540,27.7845,180.02,179.85,3.1]
[1753005915738,3.05,179.89,179.85,3.1]
[1753005916443,3.05,179.92,179.85,3.1]
[1753005916845,3.05,179.92,179.85,8.657]
[1753005917044,5.5552,179.92,179.86,3.1]
[1753005917345,3.05,179.91,179.86,3.1]
[1753005917645,3.05,179.91,179.81,3.1]
[1753005917845,3.05,179.93,179.81,3.1]
[1753005918452,3.05,180.03,179.81,3.1]
[1753005918953,3.05,179.94,179.89,3.1]
[1753005920049,3.05,179.94,179.9,3.1]
[1753005920446,3.05,179.94,179.91,3.1]
[1753005921754,5.5541,179.96,179.91,3.1]
[1753005921949,3.05,179.93,179.91,3.1]
[1753005922148,3.05,179.93,179.91,8.6553]
[1753005922347,3.05,179.93,179.92,3.1]
[1753005924855,5.5537,179.97,179.92,3.1]
[1753005924856,3.05,179.95,179.92,8.6551]
[1753005925057,3.05,179.94,179.93,3.1]
[1753005925958,3.05,180.05,179.93,3.1]
[1753005926351,5.5522,180.02,179.96,5.5538]
[1753005926558,3.05,180.01,179.98,3.1]
[1753005926857,3.05,180.01,179.88,3.1]
[1753005927551,3.05,180.01,179.89,3.1]
[1753005928148,3.07,180.0,179.98,3.18]
[1753005928349,3.07,180.0,179.99,3.18]
[1753005928955,3.07,180.0,179.89,3.18]
[1753005929559,3.07,179.99,179.96,3.18]
[1753005929765,3.07,179.99,179.88,3.18]
[1753005930260,3.07,179.99,179.97,5.5533]
[1753005930461,3.07,179.99,179.98,3.18]
[1753005931057,3.07,179.99,179.88,3.18]
[1753005931357,19.75,180.05,179.88,3.18]
[1753005931560,3.07,180.04,179.91,3.18]
[1753005931754,5.5538,179.97,179.91,3.18]
[1753005931961,3.07,179.96,179.91,3.18]
[1753005932158,3.07,179.96,179.92,3.18]
[1753005932459,3.07,179.95,179.92,3.18]
[1753005933058,3.07,179.95,179.93,3.18]
[1753005933258,3.07,179.94,179.93,3.18]
[1753005934551,5.5536,179.97,179.92,5.555]
[1753005934756,3.07,179.96,179.93,3.18]
[1753005934955,3.07,179.96,179.94,3.18]
[1753005935360,3.07,179.95,179.94,3.18]
[1753005935560,3.07,179.95,179.92,3.18]
[1753005936362,3.07,179.94,179.92,3.18]
[1753005937468,3.07,179.94,179.93,3.18]
[1753005937762,3.07,179.96,179.93,8.7348]
[1753005937966,3.07,179.96,179.94,3.18]
[1753005938964,3.07,179.96,179.92,3.18]
[1753005939268,3.07,179.96,179.9,3.18]
[1753005939463,5.5545,179.94,179.89,5.5558]
[1753005939767,3.07,179.92,179.91,3.18]
[1753005942261,3.07,179.94,179.91,3.18]
[1753005942466,3.07,179.93,179.91,3.18]
[1753005942666,3.07,179.93,179.92,3.18]
[1753005944859,3.07,179.93,179.91,3.18]
[1753005945868,3.07,179.92,179.91,3.18]
[1753005947871,5.554,179.96,179.91,5.5552]
[1753005948070,3.07,179.93,179.92,3.18]
[1753005948778,3.07,179.93,179.92,8.7351]
[1753005948973,3.07,179.93,179.92,3.18]
[1753005949574,3.07,179.93,179.92,8.7351]
[1753005950676,6.19435571,180.01,179.93,3.18]
[1753005950979,3.07,179.99,179.93,3.18]
[1753005952279,5.5525,180.01,179.9,106.80401259]
[1753005952478,3.07,179.98,179.94,3.18]
[1753005952880,3.07,179.98,179.96,5.5536]
[1753005953079,3.07,179.98,179.97,3.18]
[1753005953479,3.07,180.0,179.98,3.18]
[1753005953680,3.07,179.99,179.97,5.5534]
[1753005953881,3.07,179.99,179.91,4.64401259]
[1753005954282,3.07,179.99,179.92,3.18]
[1753005954983,3.07,179.99,179.97,3.18]
[1753005955683,3.07,179.99,179.97,8.7335]
[1753005955879,3.07,179.99,179.91,4.64401259]
[1753005956079,3.07,179.99,179.96,3.18]
[1753005956881,3.07,179.99,179.97,3.18]
[1753005958184,3.14,179.98,179.97,5.5535]
[1753005958685,3.14,180.0,179.98,5.5532]
[1753005958985,3.14,180.01,179.98,3.19]
[1753005959585,3.14,180.01,179.98,8.7431]
[1753005959784,3.14,180.01,179.99,3.19]
[1753005959986,3.14,180.0,179.98,5.5531]
[1753005960285,5.552,180.02,179.98,5.5531]
[1753005960585,3.14,179.99,179.98,8.7431]
[1753005960979,5.5518,180.03,179.98,5.5531]
[1753005961180,3.14,180.0,179.99,3.19]
[1753005962184,3.14,180.0,179.91,4.64401259]
[1753005962480,3.14,180.0,179.98,3.19]
[1753005962784,3.14,180.0,179.92,3.19]
[1753005963087,3.14,180.0,179.96,5.5536]
[1753005963283,3.14,180.0,179.97,3.19]
[1753005963580,6.19435571,180.07,179.97,3.19]
[1753005963785,3.14,180.06,179.97,8.7435]
[1753005964084,3.14,180.06,179.97,3.19]
[1753005964286,5.5527,180.0,179.97,3.19]
[1753005964487,3.14,179.99,179.97,3.19]
[1753005967084,3.14,180.01,179.97,8.7435]
[1753005967283,5.5522,180.02,179.97,5.5535]
[1753005967488,3.14,180.0,179.98,3.19]
[1753005967786,3.14,180.0,179.99,3.19]
[1753005968982,3.14,180.0,179.98,3.19]